Cogmind - Beta 13 X1 @@@ ROGUE MODE // 2023.06.24 @ 22:59:08 Player: CatPlusPlus Result: Destroyed by D-53 Grenadier with Mini Grenade Launcher Performance ------------- Evolutions (0) 0 Regions Visited (3) 600 Robots Destroyed (31) 155 Value Destroyed (964) 964 Prototype IDs (10) 200 Alien Tech Used (0) 0 Bonus (0) 0 TOTAL SCORE: 1919 Bonus ------- None Cogmind --------- Core Integrity 0/250 Matter 294/300 Energy 75/100 System Corruption 3% Temperature Cool (45) Movement Core (550) Ox10 Location -8/Recycling Parts ------- > --- POWER (1) -------- (None) > --- PROPULSION (2) --- (None) > --- UTILITY (2) ------ Large Storage Unit > --- WEAPON (2) ------- Subdweller Beam Cannon Maul > --- INVENTORY (15) --- Scrap Engine Trap Scanner Signal Interpreter Improved Signal Interpreter Improved Terrain Scanner Improved Targeting Computer Makeshift Armor Plating Gun Armor Makeshift Hacking Suite Subdweller Laser Flak Cannon Multitool Heavy Flail Peak State ------------ > --- POWER ------------ Light Ion Engine > --- PROPULSION ------- Aluminum Leg Aluminum Leg > --- UTILITY ---------- Large Storage Unit Improved Light Armor Plating > --- WEAPON ----------- Subdweller Beam Cannon Maul > --- INVENTORY -------- Light Treads Scrap Engine Heat Sink Large Storage Unit Signal Interpreter Improved Signal Interpreter Improved Terrain Scanner Makeshift Armor Plating Gun Armor Makeshift Hacking Suite EM Pulse Gun Subdweller Laser Flak Cannon Multitool [Rating: 16] Favorites ----------- Power Light Ion Engine Engine Light Ion Engine Propulsion Aluminum Leg Treads Light Treads Leg Aluminum Leg Wheel Subdweller Monowheel Utility Large Storage Unit Device Improved Terrain Scanner Storage Large Storage Unit Protection Light Armor Plating Weapon Maul Energy Gun Small Laser Energy Cannon Subdweller Beam Cannon Ballistic Gun Barrage Gun Launcher Grenade Launcher Special Weapon Mining Laser Impact Weapon Maul Build | -11 -10 -10 -8 ------- Run | Jun Mat Sub Rec Slots Evolved . | . . . . Power . | . . . . Propulsion . | . . . . Utility . | . . . . Weapon . | . . . . Parts Attached 70 | 7 19 40 4 Power 3 | 1 1 1 . Engine 3 | 1 1 1 . Core . | . . . . Reactor . | . . . . Propulsion 11 | 2 2 6 1 Treads 3 | . 2 . 1 Leg 6 | 2 . 4 . Wheel 2 | . . 2 . Hover . | . . . . Flight . | . . . . Utility 22 | 2 7 10 3 Device 11 | 1 4 5 1 Storage 2 | 1 1 . . Processor . | . . . . Hackware . | . . . . Protection 9 | . 2 5 2 Artifact . | . . . . Weapon 34 | 2 9 23 . Energy Gun 10 | 2 3 5 . Energy Cannon 8 | . 2 6 . Ballistic Gun 1 | . . 1 . Ballistic Cannon . | . . . . Launcher 7 | . 2 5 . Special Weapon 3 | . 2 1 . Impact Weapon 5 | . . 5 . Slashing Weapon . | . . . . Piercing Weapon . | . . . . Special Melee Weapon . | . . . . Unidentified Prototypes . | . . . . Parts Lost 9 | . 1 3 5 Power 2 | . . 1 1 Propulsion 4 | . . 1 3 Utility 1 | . . . 1 Weapon 2 | . 1 1 . Highest Loss Streak 5 | . 1 2 5 To Critical Strikes . | . . . . Average Slot Usage (%) 99 | . 99 99 97 Engine 13 | . 14 13 13 Treads 4 | . 27 . 1 Leg 23 | . . 27 25 Device 4 | . 13 3 . Storage 14 | . 14 14 14 Protection 9 | . . 10 13 Energy Gun 2 | . 18 . . Energy Cannon 5 | . 6 4 14 Launcher 8 | . . 11 . Impact Weapon 10 | . . 12 14 Naked Turns . | . . . . Heaviest Build 38 | 11 32 38 37 Greatest Support 40 | 20 40 40 20 Greatest Overweight (x) 2 | 2 . 1 1 Average Overweight (x) . | . . . 1 Largest Inventory Capacity 15 | 8 15 15 15 Average Capacity 14 | 7 14 15 15 Most Carried 15 | 7 15 15 15 Average Carried 14 | 4 12 14 14 Final Capacity 15 | 8 15 15 15 Final Carried 15 | 7 15 13 14 Class Distribution -------------------- 100% | Mutant Dominant Class ---------------- Mutant | -10/Materials Mutant | -10/Subcaves Mutant | -8/Recycling Resources | -11 -10 -10 -8 ----------- Run | Jun Mat Sub Rec Matter Collected 1120 | 270 171 605 74 Remotely . | . . . . Salvage Created 979 | 102 260 338 279 Parts 53 | 8 15 20 10 Haulers Intercepted 1 | . 1 . . Recyclers Shooed . | . . . . Parts Field Recycled . | . . . . Retrieved Matter . | . . . . Parts Self-Destructed 12 | . . 12 . Prevented . | . . . . Kills | -11 -10 -10 -8 ------- Run | Jun Mat Sub Rec Combat Hostiles Destroyed 26 | . 7 13 6 Melee 1 | . . . 1 Guns 4 | . 4 . . Cannons 6 | . 1 2 3 AOE 11 | . 2 9 . Classes Destroyed 11 | 2 4 3 2 Tunneler 1 | 1 . . . Hauler 1 | . 1 . . Recycler 1 | 1 . . . Turret 1 | . . 1 . Watcher 1 | . 1 . . Swarmer 7 | . 3 4 . Grunt 6 | . 4 . 2 Sentry 2 | . . . 2 Programmer 2 | . . . 2 Artisan 1 | . . 1 . Subdweller 9 | . . 9 . Best Kill Streak 6 | 2 5 4 6 Combat Bots Only 6 | . 5 4 6 Max Kills in Single Turn 2 | 1 2 2 1 Gunslinging . | . . . . Exploded 2 | . 2 2 . Melee 1 | . . . 1 Uniques/NPCs Destroyed . | . . . . Combat | -11 -10 -10 -8 -------- Run | Jun Mat Sub Rec Damage Taken 1443 | . 422 531 490 Core 263 | . 95 58 110 Absorbed by Shields . | . . . . Core Remaining (%) 100 | 100 . . . Volleys Fired 108 | 5 35 57 11 Largest 2 | 2 2 2 1 Hottest 140 | 80 100 140 80 Shots Fired 143 | 10 59 63 11 Gun 59 | 10 37 12 . Cannon 54 | . 12 31 11 Launcher 21 | . 1 20 . Special 9 | . 9 . . Kinetic . | . . . . Thermal 110 | 10 54 35 11 Explosive 21 | . 1 20 . Electromagnetic 12 | . 4 8 . Robot Hit Streak 11 | 4 11 7 7 Robot Miss Streak 5 | 1 5 2 1 Penetration Max . | . . . . Secondary Targets . | . . . . Shots Hit Robots 81 | 6 35 25 15 Core Hits 39 | 3 14 17 5 Critical Kills 2 | . . 1 1 Critical Parts Destroyed 3 | . . 2 1 Critical Strikes 5 | . . 3 2 Meltdown 1 | . . 1 . Smash 4 | . . 2 2 Melee Attacks 41 | . . 35 6 Impact 41 | . . 35 6 Slashing . | . . . . Piercing . | . . . . Sneak Attacks . | . . . . Combat Hostiles . | . . . . Follow-up Attacks . | . . . . Damage Inflicted 2319 | 67 558 1180 514 Guns 470 | 67 287 116 . Cannons 647 | . 156 208 283 Explosions 863 | . 111 752 . Melee 335 | . . 104 231 Ramming 4 | . 4 . . Kinetic . | . . . . Thermal 1037 | 67 390 297 283 Explosive 831 | . 111 720 . Electromagnetic 112 | . 53 59 . Impact 335 | . . 104 231 Slashing . | . . . . Piercing . | . . . . Highest Corruption 3 | . . . 3 Average Corruption 1 | . . . 1 Corruption Purged . | . . . . Corruption Blocked . | . . . . Overload Shots . | . . . . Overflow Damage 211 | . 61 89 61 Projectiles 30 | . . . 30 Explosions 82 | . 61 21 . Melee 99 | . . 68 31 Knockbacks 3 | . . 2 1 Impact 3 | . . 2 1 Kinetic . | . . . . Secondary . | . . . . Self-Inflicted Damage 189 | . 152 37 . Shots 5 | . 2 3 . Rammed 1 | . 1 . . Targets Rammed 1 | . 1 . . Kicked . | . . . . Crushed . | . . . . Highest Temperature 390 | 54 234 51 390 Average Temperature 83 | 26 87 16 189 Received Heat Transfer 327 | . 138 126 63 Effects 1 | . . . 1 Matter Decay 1 | . . . 1 Siege Activations . | . . . . Robots Corrupted . | . . . . Combat Hostiles . | . . . . Parts Fried 4 | . . . 4 Impact Corruptions 4 | . . 2 2 Robots Melted 1 | . . 1 . Combat Hostiles 1 | . . 1 . Parts Melted 6 | . 4 2 . Heat Transferred 1799 | 150 858 458 333 Parts Sabotaged . | . . . . Parts Stolen . | . . . . Parts Stripped . | . . . . Power Chain Reactions 1 | . . 1 . Missiles Intercepted . | . . . . Alert | -11 -10 -10 -8 ------- Run | Jun Mat Sub Rec Peak Influence 274 | 10 274 . 174 Initial 159 | . 6 . 159 Average 94 | 4 82 . 136 Maximum Alert Level 1 | . 1 . 1 Low Security (%) 87 | 100 79 . 99 Level 1 12 | . 20 . . Level 2 . | . . . . Level 3 . | . . . . Level 4 . | . . . . Level 5 . | . . . . High Security . | . . . . Max Security . | . . . . Squads Dispatched 1 | . 1 . . Investigation 1 | . 1 . . Extermination . | . . . . Reinforcement . | . . . . Assault . | . . . . Garrison . | . . . . Intercept . | . . . . Searches Triggered . | . . . . Construction Impeded . | . . . . Haulers Reinforced . | . . . . Active Scanning Responses . | . . . . Cargo Convoy Interrupts . | . . . . Stealth | -11 -10 -10 -8 --------- Run | Jun Mat Sub Rec Distress Signals 2 | . 2 . . Communications Jammed . | . . . . Distress Signals . | . . . . Times Spotted 48 | . 11 30 7 Peak Tracking Total 7 | . 5 6 7 Tactical Retreats 5 | . . 5 . Traps | -11 -10 -10 -8 ------- Run | Jun Mat Sub Rec Traps Triggered 2 | . 1 1 . Indirectly . | . . . . Trap Hack Attempts . | . . . . Triggered . | . . . . Disarmed . | . . . . Reprogrammed . | . . . . Reused . | . . . . Traps Extracted . | . . . . Installed . | . . . . Triggered . | . . . . Machines | -11 -10 -10 -8 ---------- Run | Jun Mat Sub Rec Machines Disabled 4 | . 2 2 . Max in Single Turn 2 | . 2 1 . Machines Repaired . | . . . . Machines Sabotaged . | . . . . Overloaded Fab Kills . | . . . . Hacking | -11 -10 -10 -8 --------- Run | Jun Mat Sub Rec Machines Accessed 9 | . 2 2 5 Terminals 6 | . 2 . 4 Fabricators . | . . . . Repair Stations . | . . . . Recycling Units 1 | . . . 1 Scanalyzers . | . . . . Garrison Access . | . . . . Total Hacks 25 | . 5 4 16 Successful 12 | . 2 4 6 Failed 13 | . 3 . 10 Catastrophic 2 | . 1 . 1 Database Lockouts . | . . . . Manual 19 | . 4 1 14 Terminals 18 | . 5 . 13 Fabricators . | . . . . Repair Stations . | . . . . Recycling Units 3 | . . . 3 Scanalyzers . | . . . . Garrison Access . | . . . . Terminal Hacks 9 | . 2 4 3 Record 3 | . . 3 . Part Schematic 3 | . . . 3 Robot Analysis 1 | . 1 . . Unreport Threat 1 | . 1 . . Derelict Proto ID Bank 1 | . . 1 . Fabricator Hacks . | . . . . Repair Station Hacks . | . . . . Recycling Unit Hacks 2 | . . . 2 Report Inventory 1 | . . . 1 Retrieve Components 1 | . . . 1 Scanalyzer . | . . . . Garrison Access Hacks . | . . . . Unauthorized Hacks 1 | . . . 1 Terminals . | . . . . Fabricators . | . . . . Repair Stations . | . . . . Recycling Units 1 | . . . 1 Tunnel 1 | . . . 1 Scanalyzers . | . . . . Garrison Access . | . . . . Data Cores Recovered . | . . . . Used . | . . . . Hacking Detections 7 | . 2 . 5 Full Trace Events 3 | . . . 3 Feedback Events 1 | . . . 1 Corruption 1 | . . . 1 Feedback Blocked . | . . . . Robot Schematics Acquired . | . . . . Robots Built . | . . . . Authchips . | . . . . Time . | . . . . Total Robot Build Rating . | . . . . Part Schematics Acquired 3 | . . . 3 Parts Built . | . . . . Authchips . | . . . . Time . | . . . . Total Part Build Rating . | . . . . Parts Repaired . | . . . . Time . | . . . . Parts Recycled . | . . . . Recycled Matter . | . . . . Retrieved Matter . | . . . . Retrieved Components 1 | . . . 1 Parts Scanalyzed . | . . . . Part Schematics Acquired . | . . . . Parts Damaged . | . . . . Bothacking | -11 -10 -10 -8 ------------ Run | Jun Mat Sub Rec Used RIF Installer . | . . . . Robots Hacked . | . . . . Non-combat . | . . . . Combat . | . . . . Robot Hacks Applied . | . . . . Relay Couplers Released . | . . . . Fabnet Peak Effective % . | . . . . Robots Rewired . | . . . . Allies Hacked . | . . . . Hacks Repelled . | . . . . Allies | -11 -10 -10 -8 -------- Run | Jun Mat Sub Rec Total Allies . | . . . . Largest Group . | . . . . Highest-Rated Group . | . . . . Highest-Rated Ally . | . . . . Total Orders . | . . . . Ally Attacks . | . . . . Total Damage . | . . . . Kills . | . . . . Allies Corrupted . | . . . . Allies Melted . | . . . . Intel | -11 -10 -10 -8 ------- Run | Jun Mat Sub Rec Robot Analysis Total 1 | . 1 . . Derelict Logs Recovered 2 | . . 2 . Drone Launches . | . . . . Drone Recoveries . | . . . . Exploration | -11 -10 -10 -8 ------------- Run | Jun Mat Sub Rec Turns Passed 6308 | 113 896 4796 503 Spaces Moved 2206 | 68 257 1647 234 Core 6 | 6 . . . Treads 277 | . 243 27 7 Legs 1922 | 62 14 1619 227 Wheels 1 | . . 1 . Hover . | . . . . Flight . | . . . . Fastest Speed 50 | 50 120 120 190 Average Speed 184 | 118 157 190 191 Slowest Speed 240 | 150 160 240 240 Overloaded Moves . | . . . . Propulsion Burnouts . | . . . . Robots Hopped . | . . . . Cave-ins Triggered . | . . . . Exploration Rate (%) 51 | 5 52 83 64 Regions Visited 3 Branch Regions 2 Pre-discovered Areas 3 | . . 2 1 Known Exits Taken . | . . . . Unknown Exits Taken 3 | 1 1 1 . Scrap Searched 10 | . . 10 . Spaces Dug 37 | . 8 29 . Terrain Destroyed 156 | . 28 127 1 Melee 3 | . . 3 . Projectile 24 | . 9 14 1 AOE 129 | . 19 110 . Terrain Rammed . | . . . . Walls Destroyed . | . . . . Machines Disabled . | . . . . Actions | -11 -10 -10 -8 --------- Run | Jun Mat Sub Rec Total 4187 | 87 664 3168 268 Wait 1703 | . 337 1365 1 Move 2203 | 67 256 1646 234 Hop . | . . . . Pick Up 33 | 8 11 8 6 Fast Attach 15 | 6 . 9 . Attach 6 | 1 1 3 1 Detach . | . . . . Swap 49 | . 18 28 3 Drop 28 | . 5 17 6 Fire 108 | 5 35 57 11 Melee 41 | . . 35 6 Ram . | . . . . Kick . | . . . . Crush 1 | . 1 . . Escape Stasis . | . . . . Rewire . | . . . . Trap . | . . . . Miscellaneous . | . . . . Route ------- -11/Junkyard -10/Materials (discovered 2 exits: [*Mat] / *Sub) -10/Subcaves (discovered 2 exits: [*Mat] / *Rec) -8/Recycling History --------- Turn | Location | Event 7 | -11/Junkyard | Discovered new exit (range 16) 114 | -11/Junkyard | Entered Materials 302 | -10/Materials | Build established: Mutant 491 | -10/Materials | Discovered new exit (range 6) 994 | -10/Materials | Discovered new exit (range 9) 1010 | -10/Materials | Entered Subcaves 1020 | -10/Subcaves | Learned 8 Materials zone layouts 1123 | -10/Subcaves | Discovered new exit (range 11) 1133 | -10/Subcaves | Shifting Twisted Machinery released Mak. Kinetic Plating 1137 | -10/Subcaves | Shifting Twisted Machinery released Mak. Armor Plating 1187 | -10/Subcaves | Learned location of Zion (-7) 1187 | -10/Subcaves | Met a Zionite searching for "candidates" 1458 | -10/Subcaves | Learned Materials stockpile data 2342 | -10/Subcaves | Disturbed a concealed Subdweller 2678 | -10/Subcaves | Ambushed by angry Subdweller bent on revenge 2900 | -10/Subcaves | Visited Clippyterm 2906 | -10/Subcaves | Learned location of Section 7 (-3) 3185 | -10/Subcaves | Visited 4L-MR0's lab 3204 | -10/Subcaves | Found Gun Armor 4362 | -10/Subcaves | Discovered new exit (range 10) 4500 | -10/Subcaves | A swath of the cavern ceiling suddenly collapsed 4635 | -10/Subcaves | Shifting Twisted Machinery released Sub. Beam Cannon 4846 | -10/Subcaves | Core integrity fell below 50% 5494 | -10/Subcaves | Ambushed by Subdweller buried in earth 5806 | -10/Subcaves | Entered Recycling 5806 | -8/Recycling | Found Scrap Engine 5807 | -8/Recycling | Joined Warlord attack on 0b10 via Recycling 6291 | -8/Recycling | Core integrity fell below 20% 6309 | -8/Recycling | Destroyed by D-53 Grenadier with Mini Grenade Launcher Last Messages --------------- 06275_ Destroyed Gravmag System. 06277_ P-60 Hacker destroyed. 06278_ Acquired 20 matter. 06281_ Destroyed Imp. Heat Sink. 06282_ Lgt. Ion Engine destroyed. 06287_ Overheating: Matter decay (-60). 06288_ P-60 Hacker heat short circuits Shock Rifle. 06288_ Imp. Light Armor Plating destroyed. 06291_ R-06 Scavenger collects Lgt. Armor Plating. 06293_ P-60 Hacker suffers critical hit (Smash). 06293_ P-60 Hacker destroyed. 06296_ R-06 Scavenger inserts Imp. Heat Sink into recycling unit. 06296_ Acquired 44 matter. 06299_ R-06 Scavenger inserts Beam Rifle into recycling unit. 06302_ R-06 Scavenger inserts Heat Sink into recycling unit. 06303_ U-05 Engineer builds a Wall. 06305_ R-06 Scavenger inserts Lgt. Armor Plating into recycling unit. 06306_ Y-45 Defender destroyed. 06309_ U-05 Engineer lays Concrete. 06309_ Lgt. Treads destroyed. Map ----- +----------------------------------------------------+ | ????# ## + | | ????# ## ########## | | ????# ## #????????? | | ????# ## #??#####?? | | ????# ## #??#"""#?? | | ????##+############ ####"T"### | | ?????# ???????????# | | ????? ???????????# | | ????## ???????????# """" "" | | ?????? ???????????# """" "" | | ?????? ???????????# """" "" | | ?????# #??????????# | | ?????# #??????????# | | ???### #??????????###### | | ???#"" #???????????????# | | ???#"Y ###########?????# ### | | ????"" #% !g[! #?????# #?? | | ?????# #% p ###???# #?? | | ?????#ru% Y g s + ?###+##+### | | ?????#d# / p r# ## | | ?????# # u k% b# ## | | ???###[# Y ] # # | | ??## # st # ## | | ??# u # ## | | ??# ######## ## | | ??# @ #??????# # | | ??# ! ######### ## | | ??## =%! ### ####### | | ??## [ #####?# #?##?# | | ??# #??# ###### ##+# | | ??# "" """ #??# # | | ??# "T """ #??# # | | ??# "" """ #?## # | | ??# #?#T # | | ??###+########?## """ # | | ????# #??#!!!#??# """"" # | | ????# ####! #### """"" # | | ????# """"" # | | ????# """ # | | ????# # | | ????# # | | ????###"Y"################## | | ??????#"""#????????????????#### | | ??????#####???????????????????? | | ??????????????????????????????? | | ??????????????????????????????? | | | | | | | | | +----------------------------------------------------+ Best States ------------- Heat Dissipation 25 Energy Generation 10 Energy Capacity 125 Matter Stores 300 Matter Capacity 300 Sight Range 16 Terrain Scan Range 16 Terrain Scan Density 10 Armor Coverage 150 Utility Shielding 33 Evasion (%) 55 Recoil Reduction 2 Item Schematics ----------------- Huge Storage Unit | -8/Recycling | Hacked Med. Armor Plating | -8/Recycling | Hacked VSS Leg | -8/Recycling | Hacked Robot Schematics ------------------ None Fabricated ------------ Nothing Alien Tech Used ----------------- None Achievements -------------- None Challenges ------------ None Game ------ Seed SpacefoldMolecularCannon Manual? 0 Play Time 00:53:22 Cumulative 29.1 hours Start 2023.06.24 @ 21:58:42 End 2023.06.24 @ 22:59:08 Sessions 1 Manual Loads 0 Difficulty Rogue Special Mode None Game No. 22 Rogue 22 Adventurer 0 Explorer 0 Win Type - Total 1 Types 1/0/0/0/0/0/0/0/0 Lore% 19 Gallery% 29 Achievement% 26 Wizard Run 0 Options --------- ASCII 0 Keyboard 1 Movement Numpad Keybinds 0 Fullscreen 2 Font 24/Terminus Map View 76x50 Tactical HUD 1 Map Filters NONE Filters NONE Steam 1 RUN: d110f9fb-05bf-4485-b5fe-962a9f7ab4e4